fUSD/lending_fUSD_20241219
["ID","MTS","AMOUNT","RATE_DAILY","PERIOD"]
[345972480,1734576650141,-679.02,0.00023284,4]
[345972481,1734576650150,-500.0,0.00023284,4]
[345972482,1734576650160,-500.0,0.00023284,4]
[345972483,1734576650170,-165.06,0.00023284,4]
[345972484,1734576650180,-500.0,0.00023284,4]
[345972485,1734576650190,-500.0,0.00023284,4]
[345972486,1734576650201,-500.0,0.00023284,4]
[345972487,1734576650211,-500.0,0.00023284,4]
[345972488,1734576650220,-500.0,0.00023284,4]
[345972489,1734576650230,-586.74,0.00023284,4]
[345972490,1734576650240,-500.0,0.00023284,4]
[345972491,1734576650250,-500.0,0.00023284,4]
[345972492,1734576650260,-540.41341899,0.00023284,4]
[345972493,1734576650270,-500.0,0.00023284,4]
[345972494,1734576650280,-500.0,0.00023284,4]
[345972495,1734576650290,-500.0,0.00023284,4]
[345972496,1734576650301,-875.86,0.00023284,4]
[345972497,1734576650311,-922.69,0.00023284,4]
[345972498,1734576650322,-500.0,0.00023284,4]
[345972499,1734576650332,-500.0,0.00023284,4]
[345972500,1734576650343,-1352.82,0.00023284,4]
[345972501,1734576650353,-1139.31,0.00023284,4]
[345972502,1734576650362,-500.0,0.00023284,4]
[345972503,1734576650372,-500.0,0.00023284,4]
[345972504,1734576650382,-500.0,0.00023284,4]
[345972505,1734576650392,-678.33,0.00023284,2]
[345972506,1734576650402,-787.31,0.00023284,4]
[345972507,1734576650412,-500.0,0.00023284,4]
[345972508,1734576650422,-500.0,0.00023284,4]
[345972509,1734576650431,-500.0,0.00023284,4]
[345972510,1734576650441,-500.0,0.00023284,4]
[345972511,1734576650451,-542.48,0.00023284,4]
[345972512,1734576650461,-500.0,0.00023284,4]
[345972513,1734576650470,-287.28221772,0.00023284,4]
[345972514,1734576650480,-891.63,0.00023284,4]
[345972515,1734576650491,-500.0,0.00023284,4]
[345972516,1734576650500,-500.0,0.00023284,4]
[345972517,1734576650510,-690.43,0.00023284,4]
[345972518,1734576650519,-783.72,0.00023284,4]
[345972519,1734576650529,-500.0,0.00023284,4]
[345972520,1734576650539,-500.0,0.00023284,4]
[345972521,1734576650550,-500.0,0.00023284,4]
[345972522,1734576650560,-500.0,0.00023284,4]
[345972523,1734576650570,-928.28,0.00023284,4]
[345972524,1734576650580,-544.43,0.00023285,4]
[345972525,1734576650590,-500.0,0.00023285,4]
[345972526,1734576650600,-773.57,0.00023285,4]
[345972527,1734576650610,-994.3,0.00023285,4]
[345972528,1734576650619,-1113.53,0.00023285,4]
[345972529,1734576650629,-1895.11,0.00023285,4]
[345972530,1734576650640,-516.0,0.00023285,4]
[345972531,1734576650650,-500.0,0.00023285,4]
[345972532,1734576650659,-500.0,0.00023285,4]
[345972533,1734576650670,-920.49,0.00023285,4]
[345972534,1734576650680,-3590.44,0.00023285,4]
[345972535,1734576650690,-500.0,0.00023285,4]
[345972536,1734576650700,-514.5,0.00023285,4]
[345972537,1734576650710,-953.28,0.00023285,4]
[345972538,1734576650720,-500.0,0.00023285,4]
[345972539,1734576650730,-500.0,0.00023285,4]
[345972540,1734576650740,-1000.0,0.00023285,4]
[345972541,1734576650750,-500.0,0.00023285,4]
[345972542,1734576650760,-793.66,0.00023285,4]
[345972543,1734576650774,-1454.24,0.00023285,4]
[345972544,1734576650784,-500.0,0.00023285,4]
[345972545,1734576650794,-500.0,0.00023286,4]
[345972546,1734576650805,-500.0,0.00023286,4]
[345972547,1734576650817,-420.23704782,0.00023286,4]
[345972548,1734576650827,-500.0,0.00023286,4]
[345972549,1734576650837,-660.2,0.00023286,4]
[345972550,1734576650847,-573.08,0.00023286,4]
[345972551,1734576650860,-500.0,0.00023286,4]
[345972552,1734576650871,-500.0,0.00023286,4]
[345972553,1734576650882,-500.0,0.00023286,4]
[345972554,1734576650893,-500.0,0.00023286,4]
[345972555,1734576650903,-500.0,0.00023286,4]
[345972556,1734576650913,-500.0,0.00023286,4]
[345972557,1734576650924,-500.0,0.00023286,4]
[345972558,1734576650934,-352.07030047,0.00023286,4]
[345972559,1734576650944,-500.0,0.00023286,4]
[345972560,1734576650956,-500.0,0.00023286,7]
[345972561,1734576650966,-500.0,0.00023286,4]
[345972562,1734576650975,-500.0,0.00023286,4]
[345972563,1734576650986,-477.16049322,0.00023286,4]
[345972564,1734576650996,-500.0,0.00023286,4]
[345972565,1734576651005,-525.49,0.00023286,4]
[345972566,1734576651016,-500.0,0.00023286,4]
[345972567,1734576651026,-500.0,0.00023286,4]
[345972568,1734576651037,-373.81,0.00023286,4]
[345972569,1734576651046,-500.0,0.00023286,4]
[345972570,1734576651059,-500.0,0.00023286,4]
[345972571,1734576651068,-500.0,0.00023286,4]
[345972572,1734576651078,-500.0,0.00023286,4]
[345972573,1734576651088,-500.0,0.00023286,4]
[345972574,1734576651098,-374.37858925,0.00023286,4]
[345972575,1734576651108,-500.0,0.00023286,4]
[345972576,1734576651118,-500.0,0.00023286,4]
[345972577,1734576651128,-500.0,0.00023286,4]
[345972578,1734576651139,-500.0,0.00023286,4]
[345972579,1734576651149,-520.52,0.00023286,4]
[345972580,1734576651158,-500.0,0.00023286,4]
[345972581,1734576651168,-500.0,0.00023286,4]
[345972582,1734576651178,-567.23,0.00023286,4]
[345972583,1734576651187,-500.0,0.00023286,4]
[345972584,1734576651197,-500.0,0.00023286,4]
[345972585,1734576651207,-500.0,0.00023286,4]
[345972586,1734576651217,-500.0,0.00023286,4]
[345972587,1734576651227,-400.85404658,0.00023286,4]
[345972588,1734576651237,-500.0,0.00023286,4]
[345972589,1734576651247,-500.0,0.00023286,4]
[345972590,1734576651258,-638.02,0.00023286,4]
[345972591,1734576651267,-500.0,0.00023286,4]
[345972592,1734576651277,-370.92471052,0.00023286,4]
[345972593,1734576651287,-500.0,0.00023286,4]
[345972594,1734576651296,-1000.0,0.00023287,5]
[345972595,1734576651310,-1000.0,0.00023287,5]
[345972596,1734576651320,-150.0,0.00023309,4]
[345972597,1734576651330,-150.0,0.00023321,4]
[345972598,1734576651341,-429.74,0.00023323,2]
[345972599,1734576651350,-150.0,0.00023343,4]
[345972600,1734576651360,-500.0,0.00023358,4]
[345972601,1734576651370,-500.0,0.00023358,4]
[345972602,1734576651381,-500.0,0.00023358,4]
[345972603,1734576651391,-500.0,0.00023358,4]
[345972604,1734576651401,-869.01,0.00023358,4]
[345972605,1734576651411,-500.0,0.00023358,4]
[345972606,1734576651420,-337.28,0.00023358,4]
[345972607,1734576651430,-1158.61,0.00023358,4]
[345972608,1734576651439,-647.06,0.00023358,4]
[345972609,1734576651448,-500.0,0.00023358,4]
[345972610,1734576651457,-500.0,0.00023358,4]
[345972611,1734576651467,-556.45,0.00023358,4]
[345972612,1734576651476,-1467.81,0.00023358,4]
[345972613,1734576651485,-500.0,0.00023358,4]
[345972614,1734576651494,-500.0,0.00023358,4]
[345972615,1734576651504,-500.0,0.00023358,4]
[345972616,1734576651514,-500.0,0.00023358,4]
[345972617,1734576651524,-381.50962236,0.00023358,4]
[345972618,1734576651533,-500.0,0.00023358,4]
[345972619,1734576651543,-500.0,0.00023358,4]
[345972620,1734576651556,-566.16,0.00023358,4]
[345972621,1734576651565,-196.93,0.00023358,4]
[345972622,1734576651575,-502.08,0.00023358,4]
[345972623,1734576651585,-787.42,0.00023358,4]
[345972624,1734576651595,-634.01,0.00023358,4]
[345972625,1734576651605,-500.0,0.00023358,4]
[345972626,1734576651615,-1729.060691,0.00023359,4]
[345972627,1734576651625,-2428.791844,0.00023359,4]
[345972628,1734576651635,-998.74,0.00023359,4]
[345972629,1734576651645,-500.0,0.00023359,4]
[345972630,1734576651654,-500.0,0.00023359,4]
[345972631,1734576651664,-583.23,0.00023359,4]
[345972632,1734576651673,-500.0,0.00023359,4]
[345972633,1734576651683,-783.29,0.00023359,4]
[345972634,1734576651693,-500.0,0.00023359,4]
[345972635,1734576651703,-497.84227381,0.00023359,4]
[345972636,1734576651712,-500.0,0.00023359,4]
[345972637,1734576651722,-500.0,0.00023359,4]
[345972638,1734576651732,-580.22,0.00023359,4]
[345972639,1734576651741,-659.87,0.00023359,4]
[345972640,1734576651751,-500.0,0.00023359,4]
[345972641,1734576651760,-721.9,0.00023359,4]
[345972642,1734576651771,-1363.63,0.00023359,4]
[345972643,1734576651783,-500.0,0.00023359,4]
[345972644,1734576651793,-500.0,0.00023359,4]
[345972645,1734576651803,-500.0,0.00023359,4]
[345972646,1734576651812,-2127.52,0.00023359,4]
[345972647,1734576651823,-500.0,0.00023359,4]
[345972648,1734576651832,-500.0,0.00023359,4]
[345972649,1734576651842,-249.6068738,0.00023359,4]
[345972650,1734576651852,-500.0,0.00023359,4]
[345972651,1734576651862,-500.0,0.00023359,4]
[345972652,1734576651872,-150.0,0.00023378,4]
[345972653,1734576651882,-150.0,0.00023385,4]
[345972654,1734576651892,-3139.6485018,0.00023391,2]
[345972655,1734576651902,-150.0,0.00023396,4]
[345972656,1734576651911,-150.0,0.00023412,4]
[345972657,1734576651921,-1000.0,0.00023417,2]
[345972658,1734576651931,-613.96,0.00023433,2]
[345972659,1734576651940,-150.0,0.00023446,4]
[345972660,1734576651950,-150.0,0.00023449,4]
[345972661,1734576651959,-204.0,0.0002347,2]
[345972662,1734576651969,-150.0,0.0002348,4]
[345972663,1734576651978,-155.22649181,0.00023507,2]
[345972664,1734576651987,-150.0,0.0002351,4]
[345972665,1734576651996,-150.0,0.00023513,4]
[345972666,1734576652006,-150.0,0.00023515,4]
[345972667,1734576652015,-150.0,0.00023549,4]
[345972668,1734576652025,-500.0,0.00023558,4]
[345972669,1734576652034,-500.0,0.00023558,4]
[345972670,1734576652043,-500.0,0.00023558,4]
[345972671,1734576652054,-500.0,0.00023558,4]
[345972672,1734576652064,-500.0,0.00023558,4]
[345972673,1734576652073,-500.0,0.00023558,4]
[345972674,1734576652083,-500.0,0.00023558,4]
[345972675,1734576652092,-500.0,0.00023558,4]
[345972676,1734576652101,-500.0,0.00023558,4]
[345972677,1734576652149,-857.04,0.00023558,4]
[345972678,1734576652158,-500.0,0.00023558,4]
[345972679,1734576652167,-500.0,0.00023558,4]
[345972680,1734576652177,-500.0,0.00023558,4]
[345972681,1734576652186,-500.0,0.00023558,4]
[345972682,1734576652195,-500.0,0.00023558,4]
[345972683,1734576652205,-500.0,0.00023558,4]
[345972684,1734576652214,-573.04,0.00023558,4]
[345972685,1734576652223,-539.13,0.00023558,4]
[345972686,1734576652233,-347.45509852,0.00023558,4]
[345972687,1734576652249,-152.54490148,0.00023558,4]
[345972688,1734576652258,-451.43,0.00023558,4]
[345972689,1734576652268,-500.0,0.00023558,4]
[345972690,1734576652277,-500.0,0.00023558,4]
[345972691,1734576652287,-669.36,0.00023558,4]
[345972692,1734576652296,-500.0,0.00023558,4]
[345972693,1734576652306,-501.61,0.00023558,4]
[345972694,1734576652316,-679.02,0.00023558,4]
[345972695,1734576652325,-500.0,0.00023558,4]
[345972696,1734576652334,-500.0,0.00023558,4]
[345972697,1734576652343,-500.0,0.00023558,4]
[345972698,1734576652352,-500.0,0.00023558,4]
[345972699,1734576652361,-500.0,0.00023558,4]
[345972700,1734576652370,-500.0,0.00023558,4]
[345972701,1734576652378,-500.0,0.00023558,4]
[345972702,1734576652387,-586.74,0.00023558,4]
[345972703,1734576652396,-500.0,0.00023558,4]
[345972704,1734576652405,-500.0,0.00023558,4]
[345972705,1734576652415,-500.0,0.00023558,4]
[345972706,1734576652424,-500.0,0.00023558,4]
[345972707,1734576652434,-500.0,0.00023558,4]
[345972708,1734576652442,-875.86,0.00023558,4]
[345972709,1734576652452,-922.69,0.00023558,4]
[345972710,1734576652461,-500.0,0.00023558,4]
[345972711,1734576652470,-500.0,0.00023558,4]
[345972712,1734576652479,-1352.82,0.00023558,4]
[345972713,1734576652488,-500.0,0.00023558,4]
[345972714,1734576652498,-1139.31,0.00023558,4]
[345972715,1734576652507,-500.0,0.00023558,4]
[345972716,1734576652516,-500.0,0.00023558,4]
[345972717,1734576652526,-678.33,0.00023558,2]
[345972718,1734576652536,-787.31,0.00023558,4]
[345972719,1734576652545,-500.0,0.00023558,4]
[345972720,1734576652556,-500.0,0.00023558,4]
[345972721,1734576652566,-500.0,0.00023558,4]
[345972722,1734576652575,-500.0,0.00023558,4]
[345972723,1734576652584,-542.48,0.00023558,4]
[345972724,1734576652595,-500.0,0.00023558,4]
[345972725,1734576652604,-891.63,0.00023558,4]
[345972726,1734576652613,-500.0,0.00023558,4]
[345972727,1734576652623,-500.0,0.00023558,4]
[345972728,1734576652632,-690.43,0.00023558,4]
[345972729,1734576652641,-783.72,0.00023558,4]
[345972730,1734576652650,-500.0,0.00023558,4]
[345972731,1734576652659,-500.0,0.00023558,4]
[345972732,1734576652669,-500.0,0.00023558,4]
[345972733,1734576652677,-500.0,0.00023558,4]
[345972734,1734576652687,-928.28,0.00023558,4]
[345972735,1734576652696,-544.43,0.00023559,4]
[345972736,1734576652705,-500.0,0.00023559,4]
[345972737,1734576652714,-773.57,0.00023559,4]
[345972738,1734576652723,-994.3,0.00023559,4]
[345972739,1734576652732,-1113.53,0.00023559,4]
[345972740,1734576652742,-1895.11,0.00023559,4]
[345972741,1734576652751,-516.0,0.00023559,4]
[345972742,1734576652761,-500.0,0.00023559,4]
[345972743,1734576652775,-500.0,0.00023559,4]
[345972744,1734576652786,-920.49,0.00023559,4]
[345972745,1734576652796,-3590.44,0.00023559,4]
[345972746,1734576652807,-547.98648304,0.00023559,4]
[345972747,1734576652818,-514.5,0.00023559,4]
[345972748,1734576652828,-953.28,0.00023559,4]
[345972749,1734576652838,-500.0,0.00023559,4]
[345972750,1734576652848,-500.0,0.00023559,4]
[345972751,1734576652858,-1000.0,0.00023559,4]
[345972752,1734576652868,-500.0,0.00023559,4]
[345972753,1734576652878,-793.66,0.00023559,4]
[345972754,1734576652887,-1454.24,0.00023559,4]
[345972755,1734576652896,-500.0,0.00023559,4]
[345972756,1734576652905,-501.69623305,0.0002356,4]
[345972757,1734576652915,-500.0,0.0002356,4]
[345972758,1734576652924,-500.0,0.0002356,4]
[345972759,1734576652934,-660.2,0.0002356,4]
[345972760,1734576652944,-573.08,0.0002356,4]
[345972761,1734576652954,-500.0,0.0002356,4]
[345972762,1734576652963,-500.0,0.0002356,4]
[345972763,1734576652972,-181.24509204,0.0002356,4]
[345972764,1734576652982,-597.02615858,0.0002356,4]
[345972765,1734576652991,-500.0,0.0002356,4]
[345972766,1734576653001,-500.0,0.0002356,4]
[345972767,1734576653010,-500.0,0.0002356,4]
[345972768,1734576653019,-500.0,0.0002356,4]
[345972769,1734576653029,-500.0,0.0002356,7]
[345972770,1734576653038,-500.0,0.0002356,4]
[345972771,1734576653048,-500.0,0.0002356,4]
[345972772,1734576653058,-500.0,0.0002356,4]
[345972773,1734576653068,-525.49,0.0002356,4]
[345972774,1734576653078,-500.0,0.0002356,4]
[345972775,1734576653087,-500.0,0.0002356,4]
[345972776,1734576653097,-500.0,0.0002356,4]
[345972777,1734576653106,-500.0,0.0002356,4]
[345972778,1734576653116,-500.0,0.0002356,4]
[345972779,1734576653125,-500.0,0.0002356,4]
[345972780,1734576653135,-500.0,0.0002356,4]
[345972781,1734576653145,-500.0,0.0002356,4]
[345972782,1734576653154,-500.0,0.0002356,4]
[345972783,1734576653164,-500.0,0.0002356,4]
[345972784,1734576653174,-500.0,0.0002356,4]
[345972785,1734576653183,-520.52,0.0002356,4]
[345972786,1734576653193,-500.0,0.0002356,4]
[345972787,1734576653203,-500.0,0.0002356,4]
[345972788,1734576653213,-567.23,0.0002356,4]
[345972789,1734576653222,-404.83145919,0.0002356,4]
[345972790,1734576653232,-172.10892609,0.0002356,4]
[345972791,1734576653241,-563.00616927,0.0002356,4]
[345972792,1734576653251,-500.0,0.0002356,4]
[345972793,1734576653261,-500.0,0.0002356,4]
[345972794,1734576653270,-500.0,0.0002356,4]
[345972795,1734576653279,-638.02,0.0002356,4]
[345972796,1734576653289,-500.0,0.0002356,4]
[345972797,1734576653298,-500.0,0.0002356,4]
[345972798,1734576653311,-150.0,0.00023577,4]
[345972799,1734576653320,-150.0,0.00023583,4]
[345972800,1734576653330,-155.22649181,0.00023616,2]
[345972801,1734576653339,-150.0,0.00023617,4]
[345972802,1734576653349,-150.0,0.00023623,4]
[345972803,1734576653358,-500.0,0.00023632,4]
[345972804,1734576653368,-500.0,0.00023632,4]
[345972805,1734576653378,-500.0,0.00023632,4]
[345972806,1734576653388,-500.0,0.00023632,4]
[345972807,1734576653397,-869.01,0.00023632,4]
[345972808,1734576653407,-458.29,0.00023632,4]
[345972809,1734576653416,-1158.61,0.00023632,4]
[345972810,1734576653426,-647.06,0.00023632,4]
[345972811,1734576653435,-500.0,0.00023632,4]
[345972812,1734576653445,-500.0,0.00023632,4]
[345972813,1734576653455,-556.45,0.00023632,4]
[345972814,1734576653464,-1467.81,0.00023632,4]
[345972815,1734576653474,-500.0,0.00023632,4]
[345972816,1734576653483,-500.0,0.00023632,4]
[345972817,1734576653493,-500.0,0.00023632,4]
[345972818,1734576653503,-500.0,0.00023632,4]
[345972819,1734576653512,-500.0,0.00023632,4]
[345972820,1734576653521,-500.0,0.00023632,4]
[345972821,1734576653531,-566.16,0.00023632,4]
[345972822,1734576653541,-502.08,0.00023632,4]
[345972823,1734576653552,-787.42,0.00023632,4]
[345972824,1734576653561,-634.01,0.00023632,4]
[345972825,1734576653571,-500.0,0.00023632,4]
[345972826,1734576653581,-998.74,0.00023633,4]
[345972827,1734576653590,-500.0,0.00023633,4]
[345972828,1734576653599,-500.0,0.00023633,4]
[345972829,1734576653609,-583.23,0.00023633,4]
[345972830,1734576653618,-500.0,0.00023633,4]
[345972831,1734576653627,-783.29,0.00023633,4]
[345972832,1734576653637,-500.0,0.00023633,4]
[345972833,1734576653646,-276.87,0.00023633,4]
[345972834,1734576653655,-161.93594756,0.00023633,4]
[345972835,1734576653665,-580.22,0.00023633,4]
[345972836,1734576653674,-659.87,0.00023633,4]
[345972837,1734576653683,-500.0,0.00023633,4]
[345972838,1734576653692,-721.9,0.00023633,4]
[345972839,1734576653701,-1363.63,0.00023633,4]
[345972840,1734576653710,-500.0,0.00023633,4]
[345972841,1734576653719,-500.0,0.00023633,4]
[345972842,1734576653728,-500.0,0.00023633,4]
[345972843,1734576653738,-2127.52,0.00023633,4]
[345972844,1734576653748,-500.0,0.00023633,4]
[345972845,1734576653757,-500.0,0.00023633,4]
[345972846,1734576653769,-500.0,0.00023633,4]
[345972847,1734576653785,-500.0,0.00023633,4]
[345972848,1734576653794,-150.0,0.00023641,4]
[345972849,1734576653805,-3139.6485018,0.00023642,2]
[345972850,1734576653815,-150.0,0.00023651,4]
[345972851,1734576653824,-158.12,0.00023656,2]
[345972852,1734576653833,-720.44,0.00023683,2]
[345972853,1734576653844,-150.0,0.00023686,4]
[345972854,1734576653853,-500.0,0.00023689,7]
[345972855,1734576653862,-150.0,0.00023705,4]
[345972856,1734576653871,-150.0,0.0002372,4]
[345972857,1734576653881,-150.0,0.00023737,4]
[345972858,1734576653890,-474.627,0.0002375,2]
[345972859,1734576653899,-152.0,0.00023753,3]
[345972860,1734576653908,-155.22649181,0.00023753,2]
[345972861,1734576653917,-150.0,0.00023754,4]
[345972862,1734576653926,-150.0,0.00023769,4]
[345972863,1734576653935,-150.0,0.00023788,4]
[345972864,1734576653944,-300.0,0.000238,8]
[345972865,1734576653953,-150.0,0.00023823,4]
[345972866,1734576653962,-792.24910197,0.0002383,5]
[345972867,1734576653971,-500.0,0.00023832,4]
[345972868,1734576653980,-500.0,0.00023832,4]
[345972869,1734576653990,-500.0,0.00023832,4]
[345972870,1734576653999,-500.0,0.00023832,4]
[345972871,1734576654009,-283.80114568,0.00023832,4]
[345972872,1734576654018,-500.0,0.00023832,4]
[345972873,1734576654027,-500.0,0.00023832,4]
[345972874,1734576654036,-500.0,0.00023832,4]
[345972875,1734576654046,-857.04,0.00023832,4]
[345972876,1734576654056,-500.0,0.00023832,4]
[345972877,1734576654066,-500.0,0.00023832,4]
[345972878,1734576654075,-500.0,0.00023832,4]
[345972879,1734576654084,-500.0,0.00023832,4]
[345972880,1734576654094,-500.0,0.00023832,4]
[345972881,1734576654103,-500.0,0.00023832,4]
[345972882,1734576654112,-573.04,0.00023832,4]
[345972883,1734576654121,-539.13,0.00023832,4]
[345972884,1734576654131,-500.0,0.00023832,4]
[345972885,1734576654140,-500.0,0.00023832,4]
[345972886,1734576654150,-500.0,0.00023832,4]
[345972887,1734576654159,-669.36,0.00023832,4]
[345972888,1734576654168,-500.0,0.00023832,4]
[345972889,1734576654178,-501.61,0.00023832,4]
[345972890,1734576654187,-679.02,0.00023832,4]
[345972891,1734576654196,-500.0,0.00023832,4]
[345972892,1734576654206,-500.0,0.00023832,4]
[345972893,1734576654215,-500.0,0.00023832,4]
[345972894,1734576654224,-500.0,0.00023832,4]
[345972895,1734576654233,-500.0,0.00023832,4]
[345972896,1734576654242,-500.0,0.00023832,4]
[345972897,1734576654252,-500.0,0.00023832,4]
[345972898,1734576654262,-586.74,0.00023832,4]
[345972899,1734576654271,-500.0,0.00023832,4]
[345972900,1734576654281,-500.0,0.00023832,4]
[345972901,1734576654290,-500.0,0.00023832,4]
[345972902,1734576654301,-500.0,0.00023832,4]
[345972903,1734576654312,-500.0,0.00023832,4]
[345972904,1734576654322,-875.86,0.00023832,4]
[345972905,1734576654333,-922.69,0.00023832,4]
[345972906,1734576654343,-500.0,0.00023832,4]
[345972907,1734576654352,-500.0,0.00023832,4]
[345972908,1734576654361,-1352.82,0.00023832,4]
[345972909,1734576654371,-1139.31,0.00023832,4]
[345972910,1734576654379,-500.0,0.00023832,4]
[345972911,1734576654389,-500.0,0.00023832,4]
[345972912,1734576654399,-500.0,0.00023832,4]
[345972913,1734576654408,-678.33,0.00023832,2]
[345972914,1734576654418,-787.31,0.00023832,4]
[345972915,1734576654427,-500.0,0.00023832,4]
[345972916,1734576654437,-500.0,0.00023832,4]
[345972917,1734576654447,-500.0,0.00023832,4]
[345972918,1734576654457,-500.0,0.00023832,4]
[345972919,1734576654466,-542.48,0.00023832,4]
[345972920,1734576654475,-500.0,0.00023832,4]
[345972921,1734576654484,-891.63,0.00023832,4]
[345972922,1734576654493,-500.0,0.00023832,4]
[345972923,1734576654502,-500.0,0.00023832,4]
[345972924,1734576654511,-690.43,0.00023832,4]
[345972925,1734576654520,-783.72,0.00023832,4]
[345972926,1734576654529,-233.50840244,0.00023832,4]
[345972927,1734576654538,-500.0,0.00023832,4]
[345972928,1734576654547,-500.0,0.00023832,4]
[345972929,1734576654559,-500.0,0.00023832,4]
[345972930,1734576654568,-928.28,0.00023832,4]
[345972931,1734576654577,-792.24910197,0.00023832,5]
[345972932,1734576654586,-544.43,0.00023833,4]
[345972933,1734576654595,-500.0,0.00023833,4]
[345972934,1734576654604,-636.02659594,0.00023833,4]
[345972935,1734576654642,-137.54340406,0.00023833,4]
[345972936,1734576654650,-962.45655094,0.00023833,4]
[345972937,1734576654663,-31.84344906,0.00023833,4]
[345972938,1734576654672,-1113.53,0.00023833,4]
[345972939,1734576654681,-98.57239922,0.00023833,4]
[345972940,1734576654693,-646.46616345,0.00023833,4]
[345972941,1734576654705,-1150.07143733,0.00023833,4]
[345972942,1734576654714,-127.15614625,0.00023833,4]
[345972943,1734576654726,-388.84385375,0.00023833,4]
[345972944,1734576654735,-500.0,0.00023833,4]
[345972945,1734576654745,-500.0,0.00023833,4]
[345972946,1734576654755,-362.03751406,0.00023833,4]
[345972947,1734576654770,-558.45248594,0.00023833,4]
[345972948,1734576654781,-551.74863771,0.00023833,4]
[345972949,1734576654793,-3038.69136229,0.00023833,4]
[345972950,1734576654804,-514.5,0.00023833,4]
[345972951,1734576654814,-953.28,0.00023833,4]
[345972952,1734576654824,-500.0,0.00023833,4]
[345972953,1734576654833,-500.0,0.00023833,4]
[345972954,1734576654843,-1000.0,0.00023833,4]
[345972955,1734576654854,-500.0,0.00023833,4]
[345972956,1734576654863,-793.66,0.00023833,4]
[345972957,1734576654873,-1454.24,0.00023833,4]
[345972958,1734576654882,-500.0,0.00023833,4]
[345972959,1734576654891,-150.0,0.00023833,4]
[345972960,1734576654901,-500.0,0.00023834,4]
[345972961,1734576654911,-500.0,0.00023834,4]
[345972962,1734576654920,-660.2,0.00023834,4]
[345972963,1734576654930,-573.08,0.00023834,4]
[345972964,1734576654940,-511.90829478,0.00023834,4]
[345972965,1734576654949,-500.0,0.00023834,4]
[345972966,1734576654959,-500.0,0.00023834,4]
[345972967,1734576654969,-500.0,0.00023834,4]
[345972968,1734576654979,-500.0,0.00023834,4]
[345972969,1734576654989,-500.0,0.00023834,4]
[345972970,1734576654998,-500.0,0.00023834,7]
[345972971,1734576655008,-500.0,0.00023834,4]
[345972972,1734576655018,-500.0,0.00023834,4]
[345972973,1734576655028,-500.0,0.00023834,4]
[345972974,1734576655037,-525.49,0.00023834,4]
[345972975,1734576655046,-500.0,0.00023834,4]
[345972976,1734576655058,-500.0,0.00023834,4]
[345972977,1734576655067,-500.0,0.00023834,4]
[345972978,1734576655077,-160.0942881,0.00023834,4]
[345972979,1734576655087,-500.0,0.00023834,4]